{"text_format":"1","workbook":"xlsx","n_sheets":1,"sheets":["Беларусь"],"not_rendered":{"charts":0,"images":0,"macros":1,"external_links":0,"defined_names":1,"comments":0,"pivot_tables":0},"unopened":[],"bounds":{"document_bytes":16777216,"sheet_cells":100000,"rows_first":2000,"rows_last":500,"rows_between":2000,"halvings":0,"cell_chars":16384,"cell_head_chars":4096},"cells_cut":0,"cells_raw":0,"read":"whole","date_system":"1900"}

{"sheet":"Беларусь","index":0,"n_rows":83,"n_cols":15,"rows_kept":83,"cut":false,"hidden":false,"merged":[[78,4,78,7],[70,7,70,9],[71,7,71,9]]}
["Страна",null,"Id",null,null,"Страна","Полетки","ФИО","Пол","Город ","Должность","LOPOTA \n20-25 авг",null,"LOPOTA \n21-26 авг"]
["BY",{"$f":"CONCATENATE(A2, \"-\", C2)","v":"BY-6"},6,1,"BY-6","BY","21/26","Алексеева Викторя Алексеевна","ж","Минск","Специалист по регистрации"]
["BY","BY-7",7,2,"BY-7","BY",null,"Барабан Ольга Анатольевна ","ж","Гродно","Представитель (Гродно)","twin"]
["BY","BY-8",8,3,"BY-8","BY","21/26","Ярыго Наталья Александровна ","ж","Гомель","Представитель (Гомель)",null,null,"twin"]
["BY","BY-9",9,4,"BY-9","BY",null,"Якуцевич Эвелина Федоровна","ж","Гродно","Представитель (Гродно)","twin"]
["BY","BY-10",10,5,"BY-10","BY",null,"Щербаченя Наталья Леонидовна ","ж","Минск","Менеджер по маркетингу и рекламе","single"]
["BY","BY-11",11,6,"BY-11","BY",null,"Шония Егор Геннадьевич","м","Гродно","Third party (Гродно)","twin"]
["BY","BY-12",12,7,"BY-12","BY","21/26","Шерко Евгения Эдуардовна","ж","Минск","Представитель (Минск)",null,null,"twin"]
["BY","BY-13",13,8,"BY-13","BY",null,"Шелест Анастасия Анатольевна","ж","Минск","Менеджер по маркетингу и рекламе","single"]
["BY","BY-14",14,9,"BY-14","BY","21/26","Шеков Андрей Владимирович","м","Гомель","Представитель (Гомель)",null,null,"twin"]
["BY","BY-15",15,10,"BY-15","BY",null,"Шашковская Анастасия Михайловна","ж","Витебск","Представитель (Витебск)","twin"]
["BY","BY-16",16,11,"BY-16","BY","21/26","Шантар Екатерина Вацлавовна","ж","Минск","Представитель (Минск)",null,null,"twin"]
["BY","BY-17",17,12,"BY-17","BY","21/26","Чечик Юлия Вячеславовна","ж","Минск","Менеджер по регистрации и качеству"]
["BY","BY-18",18,13,"BY-18","BY",null,"Цястка Ольга Васильевна","ж","Гродно","Представитель (Гродно)","twin"]
["BY","BY-19",19,14,"BY-19","BY",null,"Цевелюк Александр Федорович","м","Брест","Third party (Брест)","twin"]
["BY","BY-20",20,15,"BY-20","BY","21/26","Хазанова Юлия Феликсовна(на ставке Марчик), ","ж","Минск","Представитель (Минск)",null,null,"twin"]
["BY","BY-21",21,16,"BY-21","BY","21/26","Терехов Евгений Алексеевич","м","Минск","Представитель (Минск)",null,null,"twin"]
["BY","BY-22",22,17,"BY-22","BY",null,"Тамашевский Александр Дмитриевич","м","Витебск","Представитель (Витебск)","twin"]
["BY","BY-23",23,18,"BY-23","BY","21/26","Стоцкая Инна Леонтьевна ","ж","Минск","Главный бухгалтер"]
["BY","BY-24",24,19,"BY-24","BY",null,"Старченко Елена Евгеньевна","ж","Витебск","Представитель (Витебск)","twin"]
["BY","BY-25",25,20,"BY-25","BY",null,"Скребло Марина Владимировна","ж","Витебск","Third party (Витебск)","twin"]
["BY","BY-26",26,21,"BY-26","BY","21/26","Сержантова Анастасия Юрьевна ","ж","Минск ","Third party (Минск)",null,null,"twin"]
["BY","BY-27",27,22,"BY-27","BY","21/26","Семковская Анастасия Сергеевна","ж","Минск","Представитель (Минск)",null,null,"twin"]
["BY","BY-28",28,23,"BY-28","BY",null,"Сафанович Ксения Юрьевна","ж","Минск","Third party (Минск)","twin"]
["BY","BY-29",29,24,"BY-29","BY","21/26","Сауть Мария Дмитриевна","ж","Минск","Представитель (Минск)",null,null,"twin"]
["BY","BY-30",30,25,"BY-30","BY",null,"Савчук Наталья Леонтьевна","ж","Брест","Представитель (Брест)","twin"]
["BY","BY-31",31,26,"BY-31","BY",null,"Рубанов Артём Николаевич ","м","Бобруйск","Представитель (Могилев)","twin"]
["BY","BY-32",32,27,"BY-32","BY","21/26","Романовский Евгений Александрович","м","Минск","Представитель (Минск)",null,null,"twin"]
["BY","BY-33",33,28,"BY-33","BY",null,"Романовская Ксения Влвдимировна ","ж","Минск","Менеджер по маркетингу и рекламе","single"]
["BY","BY-34",34,29,"BY-34","BY",null,"Предущенко Евгения Викторовна","ж","Минск","Менеджер-аналитик","twin"]
["BY","BY-35",35,30,"BY-35","BY","21/26","Полховский Игорь Владимирович","м","Минск","Представитель (Минск)",null,null,"twin"]
["BY","BY-36",36,31,"BY-36","BY",null,"Полховская Татьяна Ивановна","ж","Брест","Представитель (Брест)","twin"]
["BY","BY-37",37,32,"BY-37","BY","21/26","Погорелова Екатерина Игоревна","ж","Минск","Представитель (Минск)",null,null,"twin"]
["BY","BY-38",38,33,"BY-38","BY","21/26","Петречук Павел Николаевич","м","Минск","Представитель (Минск)",null,null,"twin"]
["BY","BY-39",39,34,"BY-39","BY","21/26","Новиков Стефан Владимирович","м","Гомель","Third party (Гомель)",null,null,"twin"]
["BY","BY-40",40,35,"BY-40","BY",null,"Некраш Алеся Владимировна","ж","Минск","Представитель (Минск)","twin"]
["BY","BY-41",41,36,"BY-41","BY",null,"Миронович Екатерина Александровна","ж","Минск","Менеджер по стратегическому планированию","twin"]
["BY","BY-42",42,37,"BY-42","BY","21/26","Милош Кристина Геннадьевна","ж","Минск","Представитель (Минск)",null,null,"twin"]
["BY","BY-43",43,38,"BY-43","BY",null,"Макаревич Александр Михайлович","м","Брест","Представитель (Брест)","twin"]
["BY","BY-44",44,39,"BY-44","BY",null,"Майорова Анна Александровна ","ж","Могилев","Представитель (Могилев)","twin"]
["BY","BY-45",45,40,"BY-45","BY","21/26","Луневич Ольга Игоревна","ж","Минск ","Third party (Минск)",null,null,"twin"]
["BY","BY-46",46,41,"BY-46","BY",null,"Лукьянчик Дмитрий Владимирович","м","Брест","Представитель (Барановичи)","twin"]
["BY","BY-47",47,42,"BY-47","BY",null,"Левоненя Юлия Ивановна","ж","Гродно","Представитель (Гродно)","twin"]
["BY","BY-48",48,43,"BY-48","BY",null,"Кучинская Юлия Валенитновна ","ж","Минск","Руководитель отдела бухгалтерии"]
["BY","BY-49",49,44,"BY-49","BY",null,"Кузинова Татьяна Александровна","ж","Могилев","Представитель (Могилев)","twin"]
["BY","BY-50",50,45,"BY-50","BY","21/26","Крачковский Юрий Юрьевич","м","Минск","Представитель (Минск)",null,null,"twin"]
["BY","BY-51",51,46,"BY-51","BY","21/26","Колтунович Анна Игоревна","ж","Минск","Региональный менеджер (Минск + Гомель)",null,null,"twin"]
["BY","BY-52",52,47,"BY-52","BY","21/26","Козел Валентина Владимировна","ж","Гомель","Представитель (Гомель)",null,null,"twin"]
["BY","BY-53",53,48,"BY-53","BY",null,"Климук Юрий Михайлович","м","Брест","Региональный менеджер (Брест)","twin"]
["BY","BY-54",54,49,"BY-54","BY",null,"Каташенко Павел Владимирович","м","Могилев","Представитель (Могилев)","twin"]
["BY","BY-55",55,50,"BY-55","BY","21/26","Касьяненко Елена Леонидовна","ж","Минск","Third party (Минск)",null,null,"twin"]
["BY","BY-56",56,51,"BY-56","BY",null,"Вакансия",null,"Минск","Специалист по стратегическому планированию","twin"]
["BY","BY-57",57,52,"BY-57","BY","21/26","Игнатович Оксана Павловна","ж","Минск","Бухгалтер"]
["BY","BY-58",58,53,"BY-58","BY","21/26","Иванова Наталья Михайловна","ж","Минск ","Third party (Минск)",null,null,"twin"]
["BY","BY-59",59,54,"BY-59","BY",null,"Ермоленко Александр Александрович","м","Минск","Директор (Глава) Представительства"]
["BY","BY-60",60,55,"BY-60","BY",null,"Егоренко Ольга Николаевна","ж","Витебск","Региональный менеджер (Витебск)","twin"]
["BY","BY-61",61,56,"BY-61","BY","21/26","Дымов Артем Валентинович","м","Гомель","Представитель (Гомель)",null,null,"twin"]
["BY","BY-62",62,57,"BY-62","BY","21/26","Губарь Анна Александровна","ж","Минск","Представитель (Минск)",null,null,"twin"]
["BY","BY-63",63,58,"BY-63","BY",null,"Грицкевич Евгений Григорьевич","м","Минск","Специалист по стратегическому планированию","twin"]
["BY","BY-64",64,59,"BY-64","BY","21/26","Гордейчук Кристина Александровна","ж","Минск","Региональный менеджер (Минск + Гомель)",null,null,"twin"]
["BY","BY-65",65,60,"BY-65","BY",null,"Гончарова Анастасия Анатольевна","ж","Витебск","Представитель (Витебск)","twin"]
["BY","BY-66",66,61,"BY-66","BY","21/26","Гойло Лариса Эдуардовна","ж","Минск","Third party (Минск)",null,null,"twin"]
["BY","BY-67",67,62,"BY-67","BY",null,"Галынкина Екатерина Сергеевна","ж","Могилев","Third party (Могилев)","twin"]
["BY","BY-68",68,63,"BY-68","BY",null,"Вовк Ольга Сергеевна ","ж","Минск","Офис-менеджер"]
["BY","BY-69",69,64,"BY-69","BY","21/26","Боровский Артур Валерьевич","м","Минск","Представитель (Минск)",null,null,"twin"]
[]
[null,null,null,{"$f":"COUNT(D2:D65)","v":64},"ИТОГО"]
[null,null,null,null,null,null,null,null,null,null,null,"twin",{"$f":"COUNTIF(L2:L65,L5)/2","v":14},"twin",{"$f":"COUNTIF(N2:N65,N10)/2","v":13}]
[null,null,null,null,null,null,null,null,null,null,null,"single",{"$f":"COUNTIF(L2:L65,L69)","v":3},"single",{"$f":"COUNTIF(N2:N65,N69)","v":0}]
[null,null,null,null,null,null,null,"Полетные данные:"]
[null,null,null,null,null,null,34,"20 авг   Минск - Тбилиси   22:50 - 03:55+1\n25 авг   Тбилиси - Минск   05:00 - 08:10                                                                                                                          "]
[null,null,null,null,null,null,30,"21 авг   Минск - Тбилиси   22:50 - 03:55+1\n26 авг   Тбилиси - Минск   05:00 - 08:10                                                                                                                            ",null,null,"(Команды Колтунович (13 чел) и Гордейчук (13 чел) + Чечик + Алексеева + Стоцкая + Игнатович)"]
[]
[null,null,null,null,null,null,null,"Комментарии:"]
[null,null,null,null,null,null,1,"Участники добираются в / из Минска самостоятельно"]
[null,null,null,null,null,null,2,"Просим указать, кто из участников летит 20/25 августа, а кто - 21/26 августа"]
[]
[]
[null,null,null,null,"Вернуться к общему списку"]
[]
[null,null,null,null,null,null,null,"20-25 авг 2023",null,"20-25 авг 2023",null,null,"21-26 авг 2023",null,"21-26 авг 2023"]
[null,null,null,null,null,null,null,"Расселение LOPOTA:",null,"Расселение LOPOTA:",null,null,"Расселение LOPOTA:",null,"Расселение LOPOTA:"]
[null,null,null,null,null,null,null,"twin",null,"single",null,null,"single",null,"twin"]